[Event "WYCC 2018 G18"]
[Site "Halkidiki"]
[Date "2018.10.23"]
[Round "5"]
[White "Mocanu, Valeria"]
[Black "Gillis Onieva, Celia"]
[Result "1/2-1/2"]
[ECO "B31"]
[WhiteElo "1800"]
[BlackElo "1892"]
[Annotator "NA"]
[PlyCount "119"]
[EventDate "2018.10.20"]
[EventType "swiss"]
[EventCountry "GRE"]
[SourceTitle "playchess.com"]
[Source "ChessBase"]
[SourceQuality "1"]
[TimeControl "40/5400+30:1800+30"]

1. e4 c5 2. Nf3 Nc6 3. Bb5 {[%emt 0:00:00]} g6 {[%emt 0:00:02]} 4. Bxc6 {[%emt 0:00:00]} bxc6 {[%emt 0:00:10]} 5. O-O {[%emt 0:02:37]} Bg7 {[%emt 0:00:23]} 6. Re1 {[%emt 0:01:08]} Rb8 {[%emt 0:00:19]} 7. c3 {[%emt 0:00:32]} Nf6 {[%emt 0:00:41]} 8. d4 {[%emt 0:01:16]} cxd4 {[%emt 0:00:52]} 9. cxd4 {[%emt 0:03:01]} O-O {[%emt 0:00:29]} 10. Nc3 {[%emt 0:00:59]} d6 {[%emt 0:00:32]} 11. h3 {[%emt 0:07:10]} Nd7 {[%emt 0:00:35]} 12. Rb1 {[%emt 0:09:03]} c5 {[%emt 0:05:16]} 13. Be3 {[%emt 0:01:24]} Bb7 {[%emt 0:10:35]} 14. d5 {[%emt 0:15:16]} Qa5 {[%emt 0:40:28]} 15. Qd2 {[%emt 0:02:37]} Rfd8 {[%emt 0:00:29]} 16. Bh6 {[%emt 0:04:07]} Ne5 {[%emt 0:02:11]} 17. Bxg7 {[%emt 0:03:09]} Nxf3+ {[%emt 0:01:22]} 18. gxf3 {[%emt 0:00:04]} Kxg7 {[%emt 0:00:04]} 19. Kh2 {[%emt 0:10:05]} Qc7 {[%emt 0:01:30]} 20. Rg1 {[%emt 0:02:30]} e6 {[%emt 0:04:06]} 21. Rg4 {[%emt 0:06:17]} exd5 {[%emt 0:14:00]} 22. exd5 {[%emt 0:04:54]} Re8 {[%emt 0:02:48]} 23. Rh4 {[%emt 0:04:46]} h5 {[%emt 0:00:32]} 24. Rg1 {[%emt 0:07:43]} Re5 {[%emt 0:03:46]} 25. f4 {[%emt 0:02:34]} Rf5 {[%emt 0:00:03]} 26. Rg5 {[%emt 0:01:17]} Rxg5 {[%emt 0:01:56]} 27. fxg5 {[%emt 0:00:05]} Re8 {[%emt 0:02:02]} 28. Ne4 {[%emt 0:01:16]} Re5 29. Nf6 Qe7 30. Qc3 Kf8 {[%emt 0:06:59]} 31. Nh7+ Kg7 32. f4 Kxh7 33. fxe5 Qxg5 34. Re4 {[%emt 0:09:57]} Bxd5 35. Re2 Qf4+ 36. Qg3 dxe5 37. Rxe5 Qd2+ 38. Kg1 Qc1+ 39. Qe1 Qxe1+ 40. Rxe1 Bxa2 41. Ra1 Be6 {[%emt 0:10:15]} 42. Rxa7 {[%emt 0:08:21]} Kg7 {[%emt 0:07:58]} 43. h4 Kf6 44. Kf2 {[%emt 0:10:35]} Ke5 45. Kg3 c4 {[%emt 0:09:31]} 46. Ra8 f6 47. Rh8 Bd5 48. Rf8 Be4 49. Re8+ Kf5 50. Rc8 Bd5 51. Rh8 Ke5 52. Rh6 Bf7 53. Rh7 Be6 54. Rh6 Bf5 55. Rh8 Bd3 56. Rb8 g5 57. Rb5+ Ke6 58. hxg5 fxg5 59. Rxg5 Be2 60. Ra5 {Ke5} 1/2-1/2

[Event "WYCC 2018 G18"]
[Site "Halkidiki"]
[Date "2018.10.23"]
[Round "5"]
[White "Yurdakul, Didem Nuray"]
[Black "Vlkova, Anezka"]
[Result "0-1"]
[ECO "B14"]
[WhiteElo "1604"]
[BlackElo "1925"]
[Annotator "NA"]
[PlyCount "84"]
[EventDate "2018.10.20"]
[EventType "swiss"]
[EventCountry "GRE"]
[SourceTitle "playchess.com"]
[Source "ChessBase"]
[SourceQuality "1"]
[TimeControl "40/5400+30:1800+30"]

1. e4 {[%emt 0:00:00]} c6 {[%emt 0:00:00]} 2. d4 {[%emt 0:00:00]} d5 {[%emt 0:00:00]} 3. exd5 {[%emt 0:00:00]} cxd5 {[%emt 0:00:00]} 4. c4 {[%emt 0:00:00]} Nf6 {[%emt 0:00:36]} 5. Nc3 {[%emt 0:00:32]} g6 {[%emt 0:00:04]} 6. cxd5 {[%emt 0:07:22]} Nxd5 {[%emt 0:00:10]} 7. Bc4 {[%emt 0:00:07]} Nb6 {[%emt 0:00:09]} 8. Bb3 {[%emt 0:00:04]} Bg7 {[%emt 0:00:39]} 9. Nf3 {[%emt 0:01:20]} O-O {[%emt 0:00:31]} 10. O-O {[%emt 0:00:21]} Nc6 {[%emt 0:04:50]} 11. Be3 {[%emt 0:12:21]} Bg4 {[%emt 0:08:27]} 12. Re1 {[%emt 0:02:01]} Na5 {[%emt 0:03:36]} 13. Bg5 {[%emt 0:09:01]} Re8 {[%emt 0:04:26]} 14. Re4 {[%emt 0:10:29]} Bf5 {[%emt 0:01:13]} 15. Re3 {[%emt 0:00:33]} Nac4 {[%emt 0:01:34]} 16. Re2 {[%emt 0:02:11]} Rc8 {[%emt 0:03:36]} 17. Ne5 {[%emt 0:02:51]} h6 {[%emt 0:16:39]} 18. Bh4 {[%emt 0:03:32]} Bxe5 {[%emt 0:09:39]} 19. dxe5 {[%emt 0:00:47]} g5 {[%emt 0:00:27]} 20. Bg3 {[%emt 0:00:46]} Nxb2 {[%emt 0:03:30]} 21. Rxb2 {[%emt 0:00:38]} Rxc3 {[%emt 0:00:17]} 22. Qh5 {[%emt 0:00:18]} e6 {[%emt 0:05:13]} 23. Rd1 {[%emt 0:06:19]} Rd3 {[%emt 0:04:53]} 24. Rxd3 {[%emt 0:02:13]} Qxd3 {[%emt 0:02:27]} 25. Qxh6 {[%emt 0:00:44]} Nc4 {[%emt 0:00:11]} 26. Qxg5+ {[%emt 0:01:49]} Bg6 {[%emt 0:00:07]} 27. Bxc4 {[%emt 0:02:47]} Qxc4 {[%emt 0:03:59]} 28. Qd2 {[%emt 0:04:40]} Rc8 {[%emt 0:00:44]} 29. Bf4 {[%emt 0:03:24]} b5 {[%emt 0:03:45]} 30. h4 {[%emt 0:04:33]} a5 {[%emt 0:01:40]} 31. Rb3 {[%emt 0:01:57]} Kh7 {[%emt 0:05:30]} 32. h5 {[%emt 0:04:09]} Bf5 {[%emt 0:01:06]} 33. Rg3 {[%emt 0:00:51]} Qc7 {[%emt 0:07:13]} 34. Rg5 {[%emt 0:12:52]} Rd8 {[%emt 0:00:39]} 35. Qe2 {[%emt 0:00:58]} Qc3 {[%emt 0:02:53]} 36. h6 {[%emt 0:03:35]} Bg6 {[%emt 0:00:55]} 37. Rg3 {[%emt 0:00:33]} Qa1+ {[%emt 0:00:35]} 38. Kh2 {[%emt 0:00:01]} Rd1 {[%emt 0:00:25]} 39. Rb3 {[%emt 0:00:53]} Rh1+ {[%emt 0:00:27]} 40. Kg3 {[%emt 0:00:00]} Qg1 {[%emt 0:00:00]} 41. Qg4 {[%emt 0:04:32]} Rh2 {[%emt 0:05:19]} 42. Qf3 {[%emt 0:02:11]} Bf5 {[%emt 0:00:14]} 0-1

[Event "WYCC 2018 G18"]
[Site "Halkidiki"]
[Date "2018.10.23"]
[Round "5"]
[White "Ramirez Toledo, Ayleen Maribel"]
[Black "Avetisyan, Mariam"]
[Result "0-1"]
[ECO "A05"]
[WhiteElo "1545"]
[BlackElo "2049"]
[Annotator "NA"]
[PlyCount "58"]
[EventDate "2018.10.20"]
[EventType "swiss"]
[EventCountry "GRE"]
[SourceTitle "playchess.com"]
[Source "ChessBase"]
[SourceQuality "1"]
[TimeControl "40/5400+30:1800+30"]

1. Nf3 {[%emt 0:01:58]} Nf6 {[%emt 0:00:00]} 2. g3 {[%emt 0:00:13]} d5 {[%emt 0:00:00]} 3. d4 {[%emt 0:00:49]} Bf5 {[%emt 0:00:00]} 4. Bg2 {[%emt 0:00:27]} e6 {[%emt 0:01:14]} 5. O-O {[%emt 0:00:33]} h6 {[%emt 0:01:41]} 6. c4 {[%emt 0:02:16]} c6 {[%emt 0:00:20]} 7. Nbd2 {[%emt 0:02:20]} Be7 {[%emt 0:00:41]} 8. b3 {[%emt 0:00:27]} O-O {[%emt 0:00:27]} 9. Bb2 {[%emt 0:00:05]} a5 {[%emt 0:00:18]} 10. Ne5 {[%emt 0:07:56]} Nbd7 {[%emt 0:06:11]} 11. Ndf3 {[%emt 0:01:54]} Qb8 {[%emt 0:13:00]} 12. a3 {[%emt 0:13:26]} Rc8 {[%emt 0:06:35]} 13. Rc1 {[%emt 0:15:55]} Rc7 {[%emt 0:07:01]} 14. Re1 {[%emt 0:11:12]} Qa7 {[%emt 0:23:43]} 15. h3 {[%emt 0:08:44]} Bh7 {[%emt 0:03:50]} 16. Nd2 {[%emt 0:04:16]} Rd8 {[%emt 0:08:58]} 17. Nb1 {[%emt 0:08:48]} Nxe5 {[%emt 0:05:30]} 18. dxe5 {[%emt 0:06:14]} Ne4 {[%emt 0:05:01]} 19. e3 {[%emt 0:02:30]} dxc4 {[%emt 0:01:41]} 20. Qe2 {[%emt 0:02:10]} cxb3 {[%emt 0:04:49]} 21. a4 {[%emt 0:01:11]} Nc5 {[%emt 0:04:53]} 22. Bd4 {[%emt 0:00:01]} Rxd4 {[%emt 0:02:05]} 23. exd4 {[%emt 0:00:07]} Nd3 {[%emt 0:00:02]} 24. Be4 {[%emt 0:02:42]} Bxe4 {[%emt 0:00:58]} 25. Qxe4 {[%emt 0:00:01]} Nxc1 {[%emt 0:00:09]} 26. Rxc1 {[%emt 0:00:04]} Rd7 {[%emt 0:00:05]} 27. Rc4 {[%emt 0:01:08]} Bb4 {[%emt 0:02:09]} 28. Kg2 {[%emt 0:01:16]} Qa6 {[%emt 0:00:45]} 29. Qe2 {[%emt 0:02:12]} Rxd4 {[%emt 0:00:59]} 0-1

[Event "WYCC 2018 G18"]
[Site "Halkidiki"]
[Date "2018.10.23"]
[Round "5"]
[White "Booysen, Elda"]
[Black "Greibrokk, Ingrid"]
[Result "1-0"]
[ECO "B72"]
[WhiteElo "1452"]
[BlackElo "2018"]
[Annotator "NA"]
[PlyCount "101"]
[EventDate "2018.10.20"]
[EventType "swiss"]
[EventCountry "GRE"]
[SourceTitle "playchess.com"]
[Source "ChessBase"]
[SourceQuality "1"]
[TimeControl "40/5400+30:1800+30"]

1. e4 {[%emt 0:00:00]} c5 {[%emt 0:00:00]} 2. Nf3 {[%emt 0:00:00]} d6 {[%emt 0:00:00]} 3. d4 {[%emt 0:00:00]} cxd4 {[%emt 0:00:00]} 4. Nxd4 {[%emt 0:00:00]} Nf6 {[%emt 0:00:00]} 5. Nc3 {[%emt 0:00:06]} g6 {[%emt 0:00:00]} 6. Be3 {[%emt 0:01:20]} Bg7 {[%emt 0:00:00]} 7. Be2 {[%emt 0:00:08]} O-O {[%emt 0:00:00]} 8. O-O {[%emt 0:00:08]} Nc6 {[%emt 0:00:29]} 9. f3 {[%emt 0:04:57]} Bd7 {[%emt 0:01:32]} 10. Bf2 {[%emt 0:00:48]} Rc8 {[%emt 0:01:31]} 11. Qd2 {[%emt 0:10:05]} Ne5 {[%emt 0:06:48]} 12. Rab1 {[%emt 0:11:14]} a6 {[%emt 0:02:46]} 13. Rfc1 {[%emt 0:05:59]} b5 {[%emt 0:03:54]} 14. a3 {[%emt 0:03:25]} Nc4 {[%emt 0:00:24]} 15. Bxc4 {[%emt 0:00:11]} Rxc4 {[%emt 0:01:12]} 16. b3 {[%emt 0:06:56]} Rc5 {[%emt 0:08:59]} 17. Nde2 {[%emt 0:02:20]} Rc8 {[%emt 0:00:16]} 18. Nd5 {[%emt 0:05:31]} Nxd5 {[%emt 0:00:59]} 19. exd5 {[%emt 0:01:09]} Qc7 {[%emt 0:07:58]} 20. c4 {[%emt 0:02:32]} bxc4 {[%emt 0:12:06]} 21. bxc4 {[%emt 0:08:40]} Rb8 {[%emt 0:02:01]} 22. Rb4 {[%emt 0:07:43]} Qa5 {[%emt 0:07:10]} 23. c5 {[%emt 0:12:45]} dxc5 {[%emt 0:02:35]} 24. Bxc5 {[%emt 0:01:00]} Bf6 {[%emt 0:03:56]} 25. Nd4 {[%emt 0:03:43]} Rfc8 {[%emt 0:10:35]} 26. Nc6 {[%emt 0:02:15]} Bxc6 {[%emt 0:00:23]} 27. dxc6 {[%emt 0:00:04]} Rxb4 {[%emt 0:10:10]} 28. Bxb4 {[%emt 0:00:25]} Qe5 {[%emt 0:01:16]} 29. c7 {[%emt 0:03:20]} Qd4+ {[%emt 0:00:26]} 30. Qxd4 {[%emt 0:00:07]} Bxd4+ {[%emt 0:00:02]} 31. Kf1 {[%emt 0:00:16]} Bb6 {[%emt 0:00:12]} 32. Rc6 {[%emt 0:01:03]} Bd4 {[%emt 0:01:10]} 33. Bxe7 {[%emt 0:01:19]} Be5 {[%emt 0:00:20]} 34. Bd8 {[%emt 0:01:11]} Bxh2 {[%emt 0:00:52]} 35. Kf2 {[%emt 0:01:54]} Be5 {[%emt 0:00:15]} 36. Ke3 {[%emt 0:01:03]} Kf8 {[%emt 0:02:26]} 37. Ke4 {[%emt 0:00:27]} Bg3 {[%emt 0:03:34]} 38. f4 {[%emt 0:01:29]} Ke8 {[%emt 0:00:17]} 39. Ke5 {[%emt 0:01:55]} h6 {[%emt 0:03:18]} 40. Ke4 {[%emt 0:00:00]} a5 {[%emt 0:00:00]} 41. Kf3 {[%emt 0:06:09]} Be1 {[%emt 0:08:56]} 42. Rc5 {[%emt 0:01:32]} f6 {[%emt 0:03:23]} 43. Bxf6 {[%emt 0:04:30]} Kf7 {[%emt 0:02:38]} 44. Bd8 {[%emt 0:00:25]} Bd2 {[%emt 0:00:39]} 45. g3 {[%emt 0:01:07]} Be1 {[%emt 0:04:05]} 46. Rc6 {[%emt 0:03:16]} a4 {[%emt 0:04:07]} 47. Rf6+ {[%emt 0:00:36]} Kg7 {[%emt 0:00:27]} 48. Rb6 {[%emt 0:00:39]} Ba5 {[%emt 0:01:33]} 49. Rb8 {[%emt 0:00:15]} Rxc7 {[%emt 0:00:15]} 50. Bxc7 {[%emt 0:00:06]} Bxc7 {[%emt 0:00:07]} 51. Rb7 {[%emt 0:00:06]} 1-0

[Event "WYCC 2018 G18"]
[Site "Halkidiki"]
[Date "2018.10.23"]
[Round "5"]
[White "Horn, Caro"]
[Black "Nguyen, Hong Ngoc"]
[Result "0-1"]
[ECO "B03"]
[WhiteElo "1133"]
[BlackElo "1861"]
[Annotator "NA"]
[PlyCount "62"]
[EventDate "2018.10.20"]
[EventType "swiss"]
[EventCountry "GRE"]
[SourceTitle "playchess.com"]
[Source "ChessBase"]
[SourceQuality "1"]
[TimeControl "40/5400+30:1800+30"]

1. e4 {[%emt 0:00:00]} Nf6 {[%emt 0:00:00]} 2. e5 {[%emt 0:01:38]} Nd5 {[%emt 0:00:00]} 3. d4 {[%emt 0:02:16]} d6 {[%emt 0:00:28]} 4. c4 {[%emt 0:03:09]} Nb6 {[%emt 0:00:12]} 5. f4 {[%emt 0:03:15]} dxe5 {[%emt 0:00:40]} 6. fxe5 {[%emt 0:03:31]} Nc6 {[%emt 0:00:23]} 7. Nf3 {[%emt 0:04:56]} Bg4 {[%emt 0:00:38]} 8. Be3 {[%emt 0:03:00]} Bxf3 {[%emt 0:01:05]} 9. gxf3 {[%emt 0:03:54]} e6 {[%emt 0:01:13]} 10. Nc3 {[%emt 0:08:49]} Be7 {[%emt 0:00:44]} 11. d5 {[%emt 0:12:57]} Nxe5 {[%emt 0:02:07]} 12. Bf2 {[%emt 0:07:56]} Bh4 {[%emt 0:01:34]} 13. Bg3 {[%emt 0:06:01]} Qg5 {[%emt 0:04:47]} 14. Ne4 {[%emt 0:07:51]} Qe3+ {[%emt 0:01:05]} 15. Qe2 {[%emt 0:06:09]} Bxg3+ {[%emt 0:01:20]} 16. hxg3 {[%emt 0:03:03]} Nxf3+ {[%emt 0:00:28]} 17. Kd1 {[%emt 0:02:05]} Qxe2+ {[%emt 0:00:55]} 18. Bxe2 {[%emt 0:00:48]} Nd4 {[%emt 0:00:26]} 19. Bd3 {[%emt 0:01:17]} exd5 {[%emt 0:02:12]} 20. cxd5 {[%emt 0:01:22]} O-O-O {[%emt 0:00:51]} 21. d6 {[%emt 0:01:46]} Nf5 {[%emt 0:01:15]} 22. Kd2 {[%emt 0:02:21]} Nxd6 {[%emt 0:00:17]} 23. Kc3 {[%emt 0:02:15]} Na4+ {[%emt 0:01:23]} 24. Kb3 {[%emt 0:00:41]} Nxe4 {[%emt 0:00:11]} 25. Bxe4 {[%emt 0:02:02]} Nc5+ {[%emt 0:00:22]} 26. Kc4 {[%emt 0:00:35]} Nxe4 {[%emt 0:00:22]} 27. g4 {[%emt 0:00:51]} c5 {[%emt 0:00:44]} 28. Rad1 {[%emt 0:01:05]} h6 {[%emt 0:00:54]} 29. Rhe1 {[%emt 0:00:51]} Rhe8 {[%emt 0:00:18]} 30. a3 {[%emt 0:01:02]} a6 {[%emt 0:00:24]} 31. b3 {[%emt 0:00:48]} b5# {[%emt 0:00:18] Kd4} 0-1

[Event "WYCC 2018 G18"]
[Site "Halkidiki"]
[Date "2018.10.24"]
[Round "6"]
[White "Sargsyan, Anna M."]
[Black "Gajcin, Marina"]
[Result "1/2-1/2"]
[ECO "A48"]
[WhiteElo "2331"]
[BlackElo "2153"]
[Annotator "NA"]
[PlyCount "99"]
[EventDate "2018.10.20"]
[EventType "swiss"]
[EventCountry "GRE"]
[SourceTitle "playchess.com"]
[Source "ChessBase"]
[SourceQuality "1"]
[TimeControl "40/5400+30:1800+30"]

1. d4 {[%emt 0:00:00]} Nf6 {[%emt 0:00:00]} 2. Nf3 {[%emt 0:00:13]} g6 {[%emt 0:00:00]} 3. Bg5 {[%emt 0:00:18]} Bg7 {[%emt 0:00:00]} 4. Nbd2 {[%emt 0:00:14]} O-O {[%emt 0:00:05]} 5. c3 {[%emt 0:00:53]} h6 {[%emt 0:02:28]} 6. Bh4 {[%emt 0:00:17]} d6 {[%emt 0:00:27]} 7. e4 {[%emt 0:00:08]} c5 {[%emt 0:01:18] A48: 1 d4 Nf6 2 Nf3 g6: Torre, London and Colle Systems} 8. d5 {[%emt 0:00:10]} g5 {[%emt 0:00:56]} (8... e6 9. dxe6 Bxe6 10. Bd3 Nc6 11. O-O Re8 12. Re1 Qc7 13. Bc4 Rad8 14. h3 a6 {1-0 (50) Mamedyarov,S (2808)-Vachier Lagrave,M (2789) Paris 2018}) 9. Bg3 {[%emt 0:00:09]} e6 {[%emt 0:00:54]} 10. dxe6 {[%emt 0:02:09]} Bxe6 {[%emt 0:00:20]} 11. Be2 {[%emt 0:00:14]} Nc6 {[%emt 0:04:03]} 12. O-O {[%emt 0:01:16]} d5 {[%emt 0:17:20]} 13. exd5 {[%emt 0:08:07]} Nxd5 $146 {[%emt 0:01:41]} ({Predecessor:} 13... Qxd5 14. Bc4 Qf5 15. Qb3 {1-0 (76) Sedlak,N (2528)-Schleich,M (2206) Bayern 2016}) 14. Nb3 {[%emt 0:07:59]} b6 {[%emt 0:08:20]} 15. Re1 {[%emt 0:09:43]} Qc8 {[%emt 0:06:26]} 16. Bc4 {[%emt 0:05:55]} Nf4 {[%emt 0:12:26]} 17. Bxe6 {[%emt 0:06:00]} Nxe6 {[%emt 0:00:09]} 18. h4 {[%emt 0:05:30]} Qd8 {[%emt 0:12:51]} 19. Qc2 {[%emt 0:08:38]} c4 {[%emt 0:01:55]} 20. Nbd2 {[%emt 0:00:27]} Qd5 {[%emt 0:02:14]} 21. Rad1 {[%emt 0:02:11]} Nc5 {[%emt 0:03:38]} 22. hxg5 {[%emt 0:05:05]} hxg5 {[%emt 0:01:30]} 23. b3 {[%emt 0:01:11]} Qd3 {[%emt 0:04:32]} 24. Qxd3 {[%emt 0:04:41]} cxd3 {[%emt 0:00:01]} 25. Ne4 {[%emt 0:09:24]} g4 {[%emt 0:02:19]} 26. Nfg5 {[%emt 0:00:52]} Rfe8 {[%emt 0:02:54]} 27. Re3 {[%emt 0:04:36]} Nxe4 {[%emt 0:02:13]} 28. Nxe4 {[%emt 0:00:10]} f5 {[%emt 0:00:38]} 29. Nd6 {[%emt 0:00:32]} Rxe3 {[%emt 0:00:27]} 30. fxe3 {[%emt 0:00:05]} Be5 {[%emt 0:08:20]} 31. Nxf5 {[%emt 0:00:45]} Bxg3 {[%emt 0:00:24]} 32. Nxg3 {[%emt 0:00:05]} Ne5 {[%emt 0:00:44]} 33. e4 {[%emt 0:02:21]} Rc8 {[%emt 0:01:49]} 34. c4 {[%emt 0:02:08]} b5 {[%emt 0:00:13]} 35. Nf5 {[%emt 0:00:27]} Rc5 {[%emt 0:00:17]} 36. cxb5 {[%emt 0:01:23]} Rc2 {[%emt 0:01:04]} 37. a4 {[%emt 0:00:45]} Rb2 {[%emt 0:01:32]} 38. Kh2 {[%emt 0:08:19]} Rxb3 {[%emt 0:00:57]} 39. Kg3 {[%emt 0:00:35]} d2+ {[%emt 0:00:28]} 40. Kf2 {[%emt 0:00:00]} Nc4 {[%emt 0:00:00]} 41. e5 {[%emt 0:12:03]} Rc3 {[%emt 0:20:17]} 42. Ke2 {[%emt 0:07:38]} Kf7 {[%emt 0:01:09]} 43. Nd6+ {[%emt 0:09:20]} Ke6 {[%emt 0:00:10]} 44. Nxc4 $11 {[%emt 0:00:11]} Rxc4 {[%emt 0:00:01]} 45. Rxd2 {[%emt 0:00:07]} Rxa4 {[%emt 0:00:07]} 46. Kf2 {[%emt 0:00:03]} Ra3 {[%emt 0:02:38]} 47. b6 {[%emt 0:00:49]} g3+ {[%emt 0:01:40]} 48. Ke2 {[%emt 0:00:04]} axb6 {[%emt 0:00:05]} 49. Rd6+ {[%emt 0:00:06]} Kxe5 {[%emt 0:00:04]} 50. Rxb6 {[%emt 0:00:03]} 1/2-1/2

[Event "WYCC 2018 G18"]
[Site "Halkidiki"]
[Date "2018.10.24"]
[Round "6"]
[White "Di Benedetto, Desiree"]
[Black "Caballero Quijano, Mitzy Mishell"]
[Result "1-0"]
[ECO "E11"]
[WhiteElo "2321"]
[BlackElo "1956"]
[Annotator "NA"]
[PlyCount "57"]
[EventDate "2018.10.20"]
[EventType "swiss"]
[EventCountry "GRE"]
[SourceTitle "playchess.com"]
[Source "ChessBase"]
[SourceQuality "1"]
[TimeControl "40/5400+30:1800+30"]

1. d4 {[%emt 0:00:00]} e6 {[%emt 0:00:00]} 2. Nf3 {[%emt 0:01:11]} Nf6 {[%emt 0:00:26]} 3. c4 {[%emt 0:00:56]} Bb4+ {[%emt 0:00:10]} 4. Bd2 {[%emt 0:00:17]} Bxd2+ {[%emt 0:00:23]} 5. Qxd2 {[%emt 0:00:10]} b6 {[%emt 0:00:24]} 6. g3 {[%emt 0:03:41]} Bb7 {[%emt 0:01:41]} 7. Bg2 {[%emt 0:00:06]} O-O {[%emt 0:00:23]} 8. O-O {[%emt 0:00:26]} d6 {[%emt 0:05:09]} 9. Nc3 {[%emt 0:01:07]} Nbd7 {[%emt 0:09:27] LiveBook: 57 Games} 10. d5 {[%emt 0:01:19] E16: Queen's Indian: 4 g3 Bb7 5 Bg2 Bb4+} e5 {[%emt 0:02:38]} 11. b4 {[%emt 0:10:05]} Re8 {[%emt 0:25:18]} 12. e4 {[%emt 0:01:01]} Nf8 {[%emt 0:00:05]} 13. Ne1 $146 {[%emt 0:03:15]} ({Predecessor:} 13. Rfc1 c5 14. bxc5 bxc5 15. Ne1 Ba6 16. Nb5 Bxb5 17. cxb5 a6 18. bxa6 Rxa6 {½-½ (75) Damaso,R (2452)-Savic,M (2524) Turin 2006}) 13... Qe7 {[%emt 0:04:40]} 14. Nd3 {[%emt 0:02:27]} c6 {[%emt 0:01:04]} 15. a4 {[%emt 0:10:07]} cxd5 {[%emt 0:03:37]} 16. cxd5 {[%emt 0:02:01]} a5 {[%emt 0:05:14]} 17. Nb5 {[%emt 0:07:11]} Rec8 {[%emt 0:02:01]} 18. Rfc1 {[%emt 0:01:43]} N8d7 {[%emt 0:03:49]} 19. Rxc8+ {[%emt 0:07:46]} Bxc8 {[%emt 0:00:14]} 20. Qc3 {[%emt 0:04:23]} Ba6 $16 {[%emt 0:20:16]} 21. bxa5 {[%emt 0:03:18]} Rc8 {[%emt 0:01:06]} 22. Qb4 {[%emt 0:09:12]} Nc5 {[%emt 0:00:55]} 23. Nxc5 {[%emt 0:01:03]} bxc5 {[%emt 0:00:09]} 24. Qc3 {[%emt 0:04:53]} Ra8 {[%emt 0:00:40]} 25. f3 {[%emt 0:00:23]} Qd8 {[%emt 0:01:05]} 26. Rb1 {[%emt 0:05:50]} Bc8 {[%emt 0:01:36]} 27. Bf1 {[%emt 0:02:30]} Ne8 {[%emt 0:00:36]} 28. Na3 {[%emt 0:00:55]} Rxa5 {[%emt 0:00:51]} 29. Rb8 {[%emt 0:01:13]} 1-0

[Event "WYCC 2018 G18"]
[Site "Halkidiki"]
[Date "2018.10.24"]
[Round "6"]
[White "Avramidou, Anastasia"]
[Black "Limanovska, Elizabete"]
[Result "1-0"]
[ECO "A46"]
[WhiteElo "2285"]
[BlackElo "2072"]
[Annotator "NA"]
[PlyCount "113"]
[EventDate "2018.10.20"]
[EventType "swiss"]
[EventCountry "GRE"]
[SourceTitle "playchess.com"]
[Source "ChessBase"]
[SourceQuality "1"]
[TimeControl "40/5400+30:1800+30"]

1. d4 {[%emt 0:00:00]} Nf6 {[%emt 0:00:00]} 2. Nf3 {[%emt 0:00:00]} e6 {[%emt 0:00:03]} 3. e3 {[%emt 0:00:01]} b6 {[%emt 0:00:13]} 4. Bd3 {[%emt 0:00:07]} Bb7 {[%emt 0:00:09]} 5. O-O {[%emt 0:00:08]} Be7 {[%emt 0:01:30]} 6. c4 {[%emt 0:00:06]} O-O {[%emt 0:01:25]} 7. Nc3 {[%emt 0:00:06]} d5 {[%emt 0:00:46]} 8. b3 {[%emt 0:00:10]} c5 {[%emt 0:01:08]} 9. Bb2 {[%emt 0:00:24]} cxd4 {[%emt 0:03:07]} 10. exd4 {[%emt 0:00:18]} Na6 {[%emt 0:06:08]} 11. Ne5 {[%emt 0:13:25]} Nc7 {[%emt 0:07:39]} 12. Rc1 {[%emt 0:08:16]} Rc8 {[%emt 0:00:48]} 13. Qe2 {[%emt 0:04:44]} Nd7 {[%emt 0:23:20]} 14. Rfd1 {[%emt 0:16:41]} Bd6 {[%emt 0:17:16]} 15. Bb1 $11 {[%emt 0:09:23]} Qe7 {[%emt 0:06:41]} 16. Rd3 {[%emt 0:10:46]} f5 {[%emt 0:02:44]} 17. Na4 {[%emt 0:10:29]} Bxe5 {[%emt 0:04:29]} 18. dxe5 {[%emt 0:00:07]} Na6 {[%emt 0:01:55]} 19. Rcd1 {[%emt 0:03:47]} Ndc5 {[%emt 0:02:43]} 20. Ba3 {[%emt 0:02:49]} Qc7 {[%emt 0:00:48]} 21. Nxc5 {[%emt 0:00:27]} Nxc5 {[%emt 0:00:29]} 22. Rd4 {[%emt 0:03:48]} Rcd8 {[%emt 0:03:46]} 23. cxd5 {[%emt 0:01:05]} Rxd5 {[%emt 0:00:27]} 24. Rxd5 {[%emt 0:00:11]} Bxd5 {[%emt 0:00:06]} 25. Rc1 {[%emt 0:00:17]} Qb7 {[%emt 0:01:29]} 26. Bxc5 {[%emt 0:01:13]} bxc5 {[%emt 0:01:00]} 27. f3 {[%emt 0:00:07]} Qb4 {[%emt 0:01:39]} 28. Bd3 {[%emt 0:07:17]} Rd8 {[%emt 0:02:09]} 29. Ba6 {[%emt 0:03:12]} Qd4+ {[%emt 0:01:02]} 30. Kh1 {[%emt 0:00:08]} Bc6 {[%emt 0:00:45]} 31. Bc4 {[%emt 0:00:27]} Kf7 {[%emt 0:00:41]} 32. h3 {[%emt 0:01:00]} Qd2 {[%emt 0:02:31]} 33. Rc2 {[%emt 0:03:03]} Qf4 {[%emt 0:00:18]} 34. a3 {[%emt 0:01:16]} Rd4 {[%emt 0:00:37]} 35. a4 {[%emt 0:00:19]} Bd5 {[%emt 0:01:59]} 36. Kg1 {[%emt 0:00:33]} Qg3 {[%emt 0:01:11]} 37. a5 {[%emt 0:01:01]} Ba8 {[%emt 0:01:27]} 38. a6 {[%emt 0:00:42]} Rh4 {[%emt 0:00:25]} 39. Qf2 {[%emt 0:00:17]} Qxf2+ {[%emt 0:01:20]} 40. Kxf2 {[%emt 0:00:00]} Rd4 {[%emt 0:00:00]} 41. Be2 {[%emt 0:07:24]} Bd5 {[%emt 0:05:16]} 42. Rxc5 {[%emt 0:00:36]} Bxb3 {[%emt 0:00:05]} 43. Rc7+ {[%emt 0:00:08]} Kg6 {[%emt 0:00:04]} 44. Rxa7 {[%emt 0:00:08]} Rd2 {[%emt 0:03:50]} 45. Ke3 {[%emt 0:02:22]} Ra2 {[%emt 0:00:07]} 46. Bf1 {[%emt 0:03:51]} Bd5 {[%emt 0:00:58]} 47. Rd7 {[%emt 0:04:27]} h5 {[%emt 0:06:23]} 48. a7 {[%emt 0:01:17]} Ra4 {[%emt 0:01:43]} 49. Bb5 {[%emt 0:01:40]} Ra5 {[%emt 0:00:04]} 50. Bd3 {[%emt 0:00:13]} Kh6 {[%emt 0:02:58]} 51. Bxf5 {[%emt 0:06:13]} exf5 {[%emt 0:00:18]} 52. Rxd5 {[%emt 0:00:04]} Rxa7 {[%emt 0:00:05]} 53. Kf4 {[%emt 0:00:03]} Kg6 {[%emt 0:02:08]} 54. Rd6+ {[%emt 0:00:12]} Kf7 {[%emt 0:00:04]} 55. Kxf5 {[%emt 0:00:04]} Ra2 {[%emt 0:00:36]} 56. Rd7+ {[%emt 0:03:11]} Kf8 {[%emt 0:00:06]} 57. Ke6 {[%emt 0:02:06]} 1-0